lending/lending_fUSD_20240110
["ID","MTS","AMOUNT","RATE_DAILY","PERIOD"]
[311145914,1704930660872,-1732.92212707,0.00042,2]
[311145915,1704930660882,-41000.0,0.00042,30]
[311145916,1704930660891,-8650.87961474,0.00042,2]
[311145917,1704930660901,-100875.6023743,0.00042,2]
[311145918,1704930660910,-577.53,0.00042,15]
[311145919,1704930660920,-36496.12674869,0.00042,2]
[311145920,1704930660929,-100000.0,0.00042,3]
[311145921,1704930660938,-1000.0,0.00042,120]
[311145922,1704930660948,-300.0,0.00042,2]
[311145923,1704930660960,-390.0,0.00042,2]
[311145924,1704930660970,-507.0,0.00042,2]
[311145925,1704930660979,-659.0,0.00042,2]
[311145926,1704930660988,-856.0,0.00042,2]
[311145927,1704930660998,-1113.0,0.00042,2]
[311145928,1704930661007,-1448.0,0.00042,2]
[311145929,1704930661016,-1882.0,0.00042,2]
[311145930,1704930661026,-2447.0,0.00042,2]
[311145931,1704930661036,-3181.0,0.00042,2]
[311145932,1704930661045,-3162.0,0.00042,2]
[311145933,1704930661055,-3833.28,0.00042,7]
[311145934,1704930661066,-172.74369397,0.00042,30]
[311145935,1704930661076,-200.0,0.00042,2]
[311145936,1704930661085,-500.0,0.00042,6]
[311145937,1704930661099,-200.0,0.00042,2]
[311145938,1704930661109,-4007.78316481,0.00042,30]
[311145939,1704930661119,-10000.0,0.00042,30]
[311145940,1704930661129,-10000.0,0.00042,30]
[311145941,1704930661139,-10000.0,0.00042,30]
[311145942,1704930661148,-14745.10790996,0.00042,30]
[311145943,1704930661158,-1940.15614906,0.00042,30]
[311145944,1704930661168,-928.15641364,0.00042,30]
[311145945,1704930661177,-1548.18506499,0.00042,30]
[311145946,1704930661187,-308.62,0.00042,4]
[311145947,1704930661197,-308.62,0.00042,4]
[311145948,1704930661210,-308.62,0.00042,4]
[311145949,1704930661219,-308.62,0.00042,4]
[311145950,1704930661229,-308.62,0.00042,4]
[311145951,1704930661238,-308.62,0.00042,4]
[311145952,1704930661248,-308.62,0.00042,4]
[311145953,1704930661257,-308.62,0.00042,4]
[311145954,1704930661266,-308.62,0.00042,4]
[311145955,1704930661276,-308.62,0.00042,4]
[311145956,1704930661285,-308.62,0.00042,4]
[311145957,1704930661294,-308.62,0.00042,4]
[311145958,1704930661303,-308.62,0.00042,4]
[311145959,1704930661312,-308.62,0.00042,4]
[311145960,1704930661321,-308.62,0.00042,4]
[311145961,1704930661331,-308.62,0.00042,4]
[311145962,1704930661340,-308.62,0.00042,4]
[311145963,1704930661349,-308.62,0.00042,4]
[311145964,1704930661359,-308.62,0.00042,4]
[311145965,1704930661368,-308.62,0.00042,4]
[311145966,1704930661377,-1286.97940215,0.0004201,2]
[311145967,1704930661386,-2149.07,0.00042027,7]
[311145968,1704930661396,-2149.07,0.00042027,7]
[311145969,1704930661405,-2000.0,0.00042054,10]
[311145970,1704930661414,-152.97219112,0.00042067,7]
[311145971,1704930661424,-150.0,0.0004207,120]
[311145972,1704930661433,-205.07,0.0004207,120]
[311145973,1704930661442,-396.0,0.0004207,120]
[311145974,1704930661450,-150.0,0.0004208,120]
[311145975,1704930661463,-150.0,0.0004208,120]
[311145976,1704930661472,-396.0,0.0004208,120]
[311145977,1704930661481,-150.0,0.0004209,120]
[311145978,1704930661490,-150.0,0.0004209,120]
[311145979,1704930661499,-396.0,0.0004209,120]
[311145980,1704930661508,-666.40111,0.00042098,6]
[311145981,1704930661517,-500.0,0.000421,7]
[311145982,1704930661526,-157.49,0.000421,4]
[311145983,1704930661535,-157.49,0.000421,4]
[311145984,1704930661545,-4093.62,0.000421,7]
[311145985,1704930661554,-400.0,0.0004217,3]
[311145986,1704930661563,-603.48373616,0.0004217,3]
[311145987,1704930661572,-501.04018866,0.0004217,3]
[311145988,1704930661581,-43259.0,0.0004217,120]
[311145989,1704930661590,-150.0,0.00042177,2]
[311145990,1704930661598,-43259.0,0.0004218,120]
[311145991,1704930661607,-43259.0,0.0004219,120]
[311145992,1704930661616,-2022.4,0.00042191,4]
[311145993,1704930661626,-2022.4,0.00042191,4]
[311145994,1704930661635,-2022.4,0.00042191,4]
[311145995,1704930661644,-2022.4,0.00042191,4]
[311145996,1704930661653,-2022.4,0.00042191,4]
[311145997,1704930661662,-2022.4,0.00042191,4]
[311145998,1704930661671,-2022.4,0.00042191,4]
[311145999,1704930661680,-2022.4,0.00042191,4]
[311146000,1704930661689,-2022.4,0.00042191,4]
[311146001,1704930661698,-2022.4,0.00042191,4]
[311146002,1704930661709,-2022.4,0.00042191,30]
[311146003,1704930661717,-2022.4,0.00042191,30]
[311146004,1704930661726,-2022.4,0.00042191,30]
[311146005,1704930661736,-2022.4,0.00042191,30]
[311146006,1704930661745,-2022.4,0.00042191,30]
[311146007,1704930661754,-500.0,0.00042191,30]
[311146008,1704930661763,-496.21951752,0.00042191,15]
[311146009,1704930661773,-685.92,0.00042191,30]
[311146010,1704930661782,-500.0,0.00042191,30]
[311146011,1704930661791,-688.82,0.00042191,30]
[311146012,1704930661801,-721.23,0.00042191,30]
[311146013,1704930661810,-524.91,0.00042191,2]
[311146014,1704930661819,-500.0,0.00042191,30]
[311146015,1704930661828,-500.0,0.00042191,30]
[311146016,1704930661838,-699.67,0.00042191,30]
[311146017,1704930661847,-500.0,0.00042191,30]
[311146018,1704930661857,-500.0,0.00042191,30]
[311146019,1704930661866,-554.25,0.00042191,30]
[311146020,1704930661876,-500.0,0.00042191,30]
[311146021,1704930661886,-500.0,0.00042191,30]
[311146022,1704930661895,-557.24,0.00042191,30]
[311146023,1704930661904,-544.66,0.00042191,30]
[311146024,1704930661913,-1352.01,0.00042191,30]
[311146025,1704930661923,-500.0,0.00042191,30]
[311146026,1704930661933,-500.0,0.00042191,30]
[311146027,1704930661942,-980.16,0.00042191,30]
[311146028,1704930661952,-500.0,0.00042191,30]
[311146029,1704930661963,-500.0,0.00042191,30]
[311146030,1704930661973,-500.0,0.00042191,30]
[311146031,1704930661983,-500.0,0.00042191,30]
[311146032,1704930661993,-500.0,0.00042191,30]
[311146033,1704930662002,-1117.31,0.00042191,30]
[311146034,1704930662012,-2250.0,0.00042191,10]
[311146035,1704930662022,-507.48,0.00042191,30]
[311146036,1704930662031,-758.69,0.00042191,30]
[311146037,1704930662170,-532.71,0.00042191,30]
[311146038,1704930662181,-506.09,0.00042191,30]
[311146039,1704930662190,-746.81,0.00042191,30]
[311146040,1704930662199,-584.0,0.00042191,30]
[311146041,1704930662212,-818.52,0.00042191,30]
[311146042,1704930662221,-500.0,0.00042191,30]
[311146043,1704930662231,-500.0,0.00042191,30]
[311146044,1704930662240,-544.62,0.00042191,30]
[311146045,1704930662249,-701.9,0.00042191,30]
[311146046,1704930662258,-1156.27,0.00042191,30]
[311146047,1704930662267,-500.0,0.00042191,30]
[311146048,1704930662276,-969.46,0.00042191,30]
[311146049,1704930662285,-1923.82,0.00042191,30]
[311146050,1704930662294,-535.15,0.00042191,30]
[311146051,1704930662303,-500.0,0.00042191,30]
[311146052,1704930662312,-500.0,0.00042191,30]
[311146053,1704930662322,-522.94,0.00042191,30]
[311146054,1704930662332,-500.0,0.00042191,30]
[311146055,1704930662341,-1192.59,0.00042191,30]
[311146056,1704930662353,-669.83,0.00042191,30]
[311146057,1704930662362,-500.0,0.00042191,30]
[311146058,1704930662372,-695.51,0.00042191,30]
[311146059,1704930662381,-500.0,0.00042191,30]
[311146060,1704930662392,-500.0,0.00042191,30]
[311146061,1704930662402,-500.0,0.00042191,5]
[311146062,1704930662411,-668.02,0.00042191,30]
[311146063,1704930662420,-552.24,0.00042191,30]
[311146064,1704930662432,-1038.02,0.00042191,30]
[311146065,1704930662441,-1139.63,0.00042191,30]
[311146066,1704930662450,-666.40111,0.00042198,8]
[311146067,1704930662462,-500.0,0.000422,7]
[311146068,1704930662472,-9570.96,0.000422,2]
[311146069,1704930662481,-1953.45,0.000422,7]
[311146070,1704930662490,-220.0,0.00042201,28]
[311146071,1704930662499,-1000.0,0.00042205,2]
[311146072,1704930662508,-1423.36977044,0.0004221,15]
[311146073,1704930662517,-1889.61581092,0.00042241,15]
[311146074,1704930662526,-270.10891721,0.00042258,15]
[311146075,1704930662535,-1000.0,0.0004226,15]
[311146076,1704930662544,-1000.0,0.0004226,15]
[311146077,1704930662553,-1966.13163428,0.0004226,15]
[311146078,1704930662563,-175.0,0.00042288,90]
[311146079,1704930662572,-150.99155862,0.00042295,15]
[311146080,1704930662581,-728.32510193,0.00042295,15]
[311146081,1704930662592,-450.0,0.00042297,10]
[311146082,1704930662601,-666.40111,0.00042298,6]
[311146083,1704930662610,-500.0,0.000423,7]
[311146084,1704930662620,-3833.28,0.000423,7]
[311146085,1704930662629,-2149.07,0.00042301,7]
[311146086,1704930662639,-2149.07,0.00042301,7]
[311146087,1704930662648,-504.60481056,0.00042305,15]
[311146088,1704930662657,-983.74953297,0.00042328,10]
[311146089,1704930662666,-624.58434194,0.00042341,15]
[311146090,1704930662676,-163.17341695,0.00042347,7]
[311146091,1704930662685,-474.81289408,0.00042352,15]
[311146092,1704930662694,-241.0416618,0.00042352,15]
[311146093,1704930662704,-780.63622953,0.00042352,15]
[311146094,1704930662717,-153.72803979,0.00042368,7]
[311146095,1704930662726,-150.38353361,0.00042392,7]
[311146096,1704930662735,-333.40111,0.00042398,8]
[311146097,1704930662744,-5000.0,0.000424,30]
[311146098,1704930662754,-25100.12476802,0.0004244,7]
[311146099,1704930662763,-153.72803979,0.0004246,7]
[311146100,1704930662773,-191.266524,0.00042465,14]
[311146101,1704930662782,-2022.4,0.00042465,30]
[311146102,1704930662792,-500.0,0.00042465,30]
[311146103,1704930662801,-685.92,0.00042465,30]
[311146104,1704930662810,-500.0,0.00042465,30]
[311146105,1704930662820,-688.82,0.00042465,30]
[311146106,1704930662829,-721.23,0.00042465,30]
[311146107,1704930662839,-524.91,0.00042465,2]
[311146108,1704930662848,-451.15104387,0.00042465,30]
[311146109,1704930662858,-592.68,0.00042465,30]
[311146110,1704930662867,-699.67,0.00042465,30]
[311146111,1704930662877,-338.99,0.00042465,30]
[311146112,1704930662886,-544.89,0.00042465,30]
[311146113,1704930662896,-554.25,0.00042465,30]
[311146114,1704930662906,-500.0,0.00042465,30]
[311146115,1704930662916,-500.0,0.00042465,30]
[311146116,1704930662926,-557.24,0.00042465,30]
[311146117,1704930662936,-544.66,0.00042465,30]
[311146118,1704930662945,-1352.01,0.00042465,30]
[311146119,1704930662954,-500.0,0.00042465,30]
[311146120,1704930662967,-500.0,0.00042465,30]
[311146121,1704930662977,-980.16,0.00042465,30]
[311146122,1704930662987,-500.0,0.00042465,30]
[311146123,1704930662996,-500.0,0.00042465,30]
[311146124,1704930663018,-500.0,0.00042465,30]
[311146125,1704930663028,-500.0,0.00042465,30]
[311146126,1704930663038,-500.0,0.00042465,30]
[311146127,1704930663048,-1117.31,0.00042465,30]
[311146128,1704930663058,-507.48,0.00042465,30]
[311146129,1704930663072,-758.69,0.00042465,30]
[311146130,1704930663081,-532.71,0.00042465,30]
[311146131,1704930663092,-506.09,0.00042465,30]
[311146132,1704930663101,-746.81,0.00042465,30]
[311146133,1704930663111,-584.0,0.00042465,30]
[311146134,1704930663122,-818.52,0.00042465,30]
[311146135,1704930663131,-500.0,0.00042465,30]
[311146136,1704930663141,-529.02280812,0.00042465,30]
[311146137,1704930663151,-544.62,0.00042465,30]
[311146138,1704930663161,-701.9,0.00042465,30]
[311146139,1704930663170,-1156.27,0.00042465,30]
[311146140,1704930663179,-500.0,0.00042465,30]
[311146141,1704930663189,-969.46,0.00042465,30]
[311146142,1704930663199,-1923.82,0.00042465,30]
[311146143,1704930663209,-535.15,0.00042465,30]
[311146144,1704930663219,-500.0,0.00042465,30]
[311146145,1704930663229,-500.0,0.00042465,30]
[311146146,1704930663239,-522.94,0.00042465,30]
[311146147,1704930663248,-500.0,0.00042465,30]
[311146148,1704930663257,-1192.59,0.00042465,30]
[311146149,1704930663267,-669.83,0.00042465,30]
[311146150,1704930663277,-500.0,0.00042465,30]
[311146151,1704930663289,-695.51,0.00042465,30]
[311146152,1704930663298,-252.44,0.00042465,30]
[311146153,1704930663308,-500.0,0.00042465,30]
[311146154,1704930663318,-500.0,0.00042465,5]
[311146155,1704930663327,-668.02,0.00042465,30]
[311146156,1704930663337,-552.24,0.00042465,30]
[311146157,1704930663347,-1038.02,0.00042465,30]
[311146158,1704930663357,-1139.63,0.00042465,30]
[311146159,1704930663367,-500.0,0.00042466,2]
[311146160,1704930663376,-235.24,0.0004247,10]
[311146161,1704930663386,-215.27,0.0004247,10]
[311146162,1704930663395,-158.32055843,0.0004247,10]
[311146163,1704930663404,-158.32,0.0004247,10]
[311146164,1704930663413,-273.05,0.0004247,10]
[311146165,1704930663423,-202.76,0.0004247,120]
[311146166,1704930663432,-396.0,0.0004247,120]
[311146167,1704930663441,-150.0,0.0004248,120]
[311146168,1704930663451,-396.0,0.0004248,120]
[311146169,1704930663462,-150.0,0.0004249,120]
[311146170,1704930663471,-396.0,0.0004249,120]
[311146171,1704930663481,-900.0,0.000425,120]
[311146172,1704930663490,-5000.0,0.000425,7]
[311146173,1704930663499,-5000.0,0.000425,7]
[311146174,1704930663509,-1953.45,0.000425,7]
[311146175,1704930663518,-4093.62,0.000425,7]
[311146176,1704930663528,-150.0,0.000425,32]
[311146177,1704930663538,-8000.0,0.000425,5]
[311146178,1704930663548,-1037.6631936,0.000425,6]
[311146179,1704930663558,-5000.0,0.000425,30]
[311146180,1704930663567,-1000.0,0.000425,14]
[311146181,1704930663577,-156.87,0.000425,7]
[311146182,1704930663587,-181.76000005,0.000425,30]
[311146183,1704930663596,-1222.77723517,0.000425,30]
[311146184,1704930663606,-1787.25923542,0.00042507,15]
[311146185,1704930663616,-412.85848137,0.00042507,15]
[311146186,1704930663625,-185.78631661,0.00042507,15]
[311146187,1704930663635,-163.70939161,0.00042507,15]
[311146188,1704930663644,-518.50326709,0.00042507,15]
[311146189,1704930663653,-372.93965431,0.00042507,15]
[311146190,1704930663663,-619.81425747,0.00042507,15]
[311146191,1704930663672,-2149.07,0.00042574,7]
[311146192,1704930663681,-2149.07,0.00042574,7]
[311146193,1704930663691,-551.4062217,0.000426,30]
[311146194,1704930663701,-3833.28,0.000426,7]
[311146195,1704930663712,-300.68,0.000426,2]
[311146196,1704930663721,-1037.6631932,0.000426,6]
[311146197,1704930663731,-450.0,0.00042677,10]
[311146198,1704930663740,-21190.0,0.00042679,30]
[311146199,1704930663750,-370.43,0.00042683,2]
[311146200,1704930663759,-261.21,0.00042683,2]
[311146201,1704930663768,-576.01,0.00042683,2]
[311146202,1704930663777,-293.76,0.00042683,2]
[311146203,1704930663786,-293.76,0.00042683,2]
[311146204,1704930663796,-293.76,0.00042683,2]
[311146205,1704930663805,-293.76,0.00042683,2]
[311146206,1704930663814,-293.76,0.00042683,2]
[311146207,1704930663824,-293.76,0.00042683,2]
[311146208,1704930663832,-293.76,0.00042683,2]
[311146209,1704930663842,-293.76,0.00042683,2]
[311146210,1704930663852,-586.75,0.00042683,2]
[311146211,1704930663861,-10627.46199922,0.00042687,2]
[311146212,1704930663870,-30932.67172172,0.00042687,30]
[311146213,1704930663880,-435.23427019,0.00042725,90]
[311146214,1704930663889,-151.0,0.00042739,2]
[311146215,1704930663899,-2022.4,0.00042739,30]
[311146216,1704930663908,-500.0,0.00042739,30]
[311146217,1704930663918,-685.92,0.00042739,30]
[311146218,1704930663927,-500.0,0.00042739,30]
[311146219,1704930663947,-688.82,0.00042739,30]
[311146220,1704930663957,-721.23,0.00042739,30]
[311146221,1704930663970,-524.91,0.00042739,2]
[311146222,1704930663980,-699.67,0.00042739,30]
[311146223,1704930663989,-554.25,0.00042739,30]
[311146224,1704930663999,-332.28361651,0.00042739,30]
[311146225,1704930664008,-500.0,0.00042739,30]
[311146226,1704930664017,-557.24,0.00042739,30]
[311146227,1704930664027,-544.66,0.00042739,30]
[311146228,1704930664037,-1352.01,0.00042739,30]
[311146229,1704930664048,-518.89,0.00042739,30]
[311146230,1704930664058,-500.0,0.00042739,30]
[311146231,1704930664068,-980.16,0.00042739,30]
[311146232,1704930664078,-500.0,0.00042739,30]
[311146233,1704930664087,-500.0,0.00042739,30]
[311146234,1704930664098,-500.0,0.00042739,30]
[311146235,1704930664107,-500.0,0.00042739,30]
[311146236,1704930664117,-500.0,0.00042739,30]
[311146237,1704930664127,-1117.31,0.00042739,30]
[311146238,1704930664137,-507.48,0.00042739,30]
[311146239,1704930664147,-758.69,0.00042739,30]
[311146240,1704930664156,-506.09,0.00042739,30]
[311146241,1704930664167,-746.81,0.00042739,30]
[311146242,1704930664176,-532.71,0.00042739,30]
[311146243,1704930664186,-584.0,0.00042739,30]
[311146244,1704930664195,-509.96247203,0.00042739,30]
[311146245,1704930664204,-818.52,0.00042739,30]
[311146246,1704930664217,-544.62,0.00042739,30]
[311146247,1704930664227,-701.9,0.00042739,30]
[311146248,1704930664236,-1156.27,0.00042739,30]
[311146249,1704930664246,-500.0,0.00042739,30]
[311146250,1704930664255,-969.46,0.00042739,30]
[311146251,1704930664266,-1923.82,0.00042739,30]
[311146252,1704930664276,-535.15,0.00042739,30]
[311146253,1704930664286,-500.0,0.00042739,30]
[311146254,1704930664295,-500.0,0.00042739,30]
[311146255,1704930664305,-522.94,0.00042739,30]
[311146256,1704930664315,-500.0,0.00042739,30]
[311146257,1704930664325,-1192.59,0.00042739,30]
[311146258,1704930664335,-669.83,0.00042739,30]
[311146259,1704930664346,-500.0,0.00042739,30]
[311146260,1704930664359,-695.51,0.00042739,30]
[311146261,1704930664369,-500.0,0.00042739,30]
[311146262,1704930664378,-625.58424472,0.00042739,5]
[311146263,1704930664390,-668.02,0.00042739,30]
[311146264,1704930664399,-552.24,0.00042739,30]
[311146265,1704930664409,-1038.02,0.00042739,30]
[311146266,1704930664419,-1139.63,0.00042739,30]
[311146267,1704930664429,-150.99155862,0.00042744,17]
[311146268,1704930664439,-150.0,0.00042769,120]
[311146269,1704930664448,-52351.33692895,0.0004278,2]
[311146270,1704930664458,-301.12,0.000428,45]
[311146271,1704930664469,-1953.45,0.000428,7]
[311146272,1704930664478,-153.84,0.00042842,2]
[311146273,1704930664487,-2149.07,0.00042847,7]
[311146274,1704930664496,-2149.07,0.00042847,7]
[311146275,1704930664505,-150.0,0.000429,16]
[311146276,1704930664514,-3833.28,0.000429,7]
[311146277,1704930664523,-4093.62,0.000429,7]
[311146278,1704930664532,-1998.08,0.000429,2]
[311146279,1704930664545,-1677.76677478,0.000429,2]
[311146280,1704930664554,-159.57466415,0.0004295,120]
[311146281,1704930664564,-346.10137,0.0004295,16]
[311146282,1704930664573,-66095.4031524,0.00042969,2]
[311146283,1704930664582,-2116.3235239,0.00042969,2]
[311146284,1704930664591,-4251.4139322,0.00042969,2]
[311146285,1704930664601,-82293.7425848,0.00042969,2]
[311146286,1704930664610,-19120.1404038,0.00042969,2]
[311146287,1704930664619,-396.0,0.0004298,120]
[311146288,1704930664628,-43259.0,0.0004298,120]
[311146289,1704930664637,-500.0,0.00042987,35]
[311146290,1704930664646,-200.0,0.00042987,22]
[311146291,1704930664655,-396.0,0.0004299,120]
[311146292,1704930664664,-43259.0,0.0004299,120]
[311146293,1704930664673,-192.88,0.0004299,120]
[311146294,1704930664682,-6805.0,0.0004299,3]
[311146295,1704930664692,-153.72803979,0.00042992,7]
[311146296,1704930664700,-682.03350113,0.00042997,2]
[311146297,1704930664712,-143281.9217846,0.00042999,30]
[311146298,1704930664722,-100000.0,0.00043,3]
[311146299,1704930664731,-300.0,0.00043,5]
[311146300,1704930664740,-300.0,0.00043,5]
[311146301,1704930664750,-984062.2079536,0.00043,15]
[311146302,1704930664759,-18058.07,0.00043,15]
[311146303,1704930664768,-200.79761858,0.00043,2]
[311146304,1704930664777,-501.66483845,0.00043,17]
[311146305,1704930664786,-2147.44748099,0.00043,60]
[311146306,1704930664796,-1723.81912393,0.00043,20]
[311146307,1704930664805,-10092.17306259,0.00043,2]
[311146308,1704930664814,-1000.0,0.00043,14]
[311146309,1704930664823,-182.0165571,0.00043,15]
[311146310,1704930664832,-644.0,0.00043,10]
[311146311,1704930664841,-202056.26342282,0.00043,5]
[311146312,1704930664851,-597.20542587,0.00043,30]
[311146313,1704930664860,-10000.0,0.00043,12]
[311146314,1704930664869,-10000.0,0.00043,12]
[311146315,1704930664878,-5400.0,0.00043,30]
[311146316,1704930664887,-422.0,0.00043,30]
[311146317,1704930664897,-2222.0,0.00043,30]
[311146318,1704930664906,-1249.54027668,0.00043,7]
[311146319,1704930664916,-1009.55088358,0.00043,10]
[311146320,1704930664926,-1004.38772773,0.00043,30]
[311146321,1704930664935,-1001.36750113,0.00043,14]
[311146322,1704930664944,-2201.98,0.00043,30]
[311146323,1704930664954,-1004.43383026,0.00043,30]
[311146324,1704930664965,-18747.58320387,0.00043,6]
[311146325,1704930664974,-10000.0,0.00043,2]
[311146326,1704930664984,-46492.0,0.00043,5]
[311146327,1704930664993,-121318.5350504,0.00043,2]
[311146328,1704930665002,-1510.45463141,0.00043,60]
[311146329,1704930665012,-300.0,0.00043,44]
[311146330,1704930665022,-2000.0,0.00043,120]
[311146331,1704930665031,-15668.63844604,0.00043,15]
[311146332,1704930665041,-4007.0,0.00043,30]
[311146333,1704930665051,-10000.0,0.00043,30]
[311146334,1704930665061,-10000.0,0.00043,30]
[311146335,1704930665071,-10000.0,0.00043,30]
[311146336,1704930665082,-14745.0,0.00043,30]
[311146337,1704930665264,-1940.0,0.00043,30]
[311146338,1704930665275,-927.0,0.00043,30]
[311146339,1704930665286,-1548.0,0.00043,30]
[311146340,1704930665296,-567.47436372,0.00043,30]
[311146341,1704930665307,-2022.4,0.00043013,30]
[311146342,1704930665316,-500.0,0.00043013,30]
[311146343,1704930665327,-685.92,0.00043013,30]
[311146344,1704930665338,-500.0,0.00043013,30]
[311146345,1704930665349,-688.82,0.00043013,30]
[311146346,1704930665360,-721.23,0.00043013,30]
[311146347,1704930665370,-524.91,0.00043013,2]
[311146348,1704930665380,-699.67,0.00043013,30]
[311146349,1704930665391,-554.25,0.00043013,30]
[311146350,1704930665401,-606.65984559,0.00043013,30]
[311146351,1704930665411,-557.24,0.00043013,30]
[311146352,1704930665420,-544.66,0.00043013,30]
[311146353,1704930665431,-1352.01,0.00043013,30]
[311146354,1704930665440,-287.94,0.00043013,30]
[311146355,1704930665450,-980.16,0.00043013,30]
[311146356,1704930665462,-500.0,0.00043013,30]
[311146357,1704930665472,-500.0,0.00043013,30]
[311146358,1704930665481,-500.0,0.00043013,30]
[311146359,1704930665491,-374.32620424,0.00043013,30]
[311146360,1704930665501,-500.0,0.00043013,30]
[311146361,1704930665511,-1117.31,0.00043013,30]
[311146362,1704930665521,-507.48,0.00043013,30]
[311146363,1704930665530,-758.69,0.00043013,30]
[311146364,1704930665541,-506.09,0.00043013,30]
[311146365,1704930665551,-746.81,0.00043013,30]
[311146366,1704930665561,-532.71,0.00043013,30]
[311146367,1704930665571,-584.0,0.00043013,30]
[311146368,1704930665580,-818.52,0.00043013,30]
[311146369,1704930665590,-544.62,0.00043013,30]
[311146370,1704930665601,-701.9,0.00043013,30]
[311146371,1704930665611,-1156.27,0.00043013,30]
[311146372,1704930665621,-500.0,0.00043013,30]
[311146373,1704930665631,-969.46,0.00043013,30]
[311146374,1704930665641,-1923.82,0.00043013,30]
[311146375,1704930665650,-535.15,0.00043013,30]
[311146376,1704930665660,-500.0,0.00043013,30]
[311146377,1704930665670,-318.22,0.00043013,30]
[311146378,1704930665680,-522.94,0.00043013,30]
[311146379,1704930665689,-500.0,0.00043013,30]
[311146380,1704930665700,-1192.59,0.00043013,30]
[311146381,1704930665711,-669.83,0.00043013,30]
[311146382,1704930665721,-500.0,0.00043013,30]
[311146383,1704930665731,-695.51,0.00043013,30]
[311146384,1704930665741,-500.0,0.00043013,30]
[311146385,1704930665750,-668.02,0.00043013,30]
[311146386,1704930665759,-552.24,0.00043013,30]
[311146387,1704930665769,-1038.02,0.00043013,30]
[311146388,1704930665779,-1139.63,0.00043013,30]
[311146389,1704930665789,-10830.61,0.00043014,2]
[311146390,1704930665798,-450.0,0.00043056,10]
[311146391,1704930665808,-220.0,0.00043099,28]
[311146392,1704930665817,-1953.45,0.000431,7]
[311146393,1704930665829,-166.0,0.00043104,2]
[311146394,1704930665839,-167.0,0.00043104,2]
[311146395,1704930665848,-150.0,0.00043115,2]
[311146396,1704930665858,-21190.0,0.00043119,30]
[311146397,1704930665867,-2149.07,0.0004312,7]
[311146398,1704930665876,-2149.07,0.0004312,7]
[311146399,1704930665886,-500.0,0.0004314,5]
[311146400,1704930665896,-249.371,0.00043175,2]
[311146401,1704930665906,-5000.0,0.00043185,30]
[311146402,1704930665916,-150.99155862,0.00043194,18]
[311146403,1704930665926,-3833.28,0.000432,7]
[311146404,1704930665936,-2022.4,0.00043287,30]
[311146405,1704930665946,-500.0,0.00043287,30]
[311146406,1704930665956,-685.92,0.00043287,30]
[311146407,1704930665970,-497.57867812,0.00043287,30]
[311146408,1704930665980,-688.82,0.00043287,30]
[311146409,1704930665990,-721.23,0.00043287,30]
[311146410,1704930666000,-524.91,0.00043287,2]
[311146411,1704930666011,-699.67,0.00043287,30]
[311146412,1704930666021,-554.25,0.00043287,30]
[311146413,1704930666031,-557.24,0.00043287,30]